[Event "Early-Titled-Tuesday-Blitz-September-12-2023"]
[Site "Chess.com"]
[Date "2023.09.12"]
[Round "8"]
[White "MathiasWomacka"]
[Black "Journey_to_GrandMaster_YT"]
[Result "0-1"]
[WhiteElo "2474"]
[BlackElo "2612"]
[TimeControl "180+1"]
[EndTime "9:29:18 PDT"]
[Termination "Journey_to_GrandMaster_YT won on time"]

1. e4 {[%clk 0:02:57.8]} 1... d6 {[%clk 0:03:00.9]} 2. d4 {[%clk 0:02:56.3]}
2... Nf6 {[%clk 0:03:01.8]} 3. Nc3 {[%clk 0:02:55.8]} 3... e5 {[%clk 0:03:02.7]}
4. Nf3 {[%clk 0:02:55.5]} 4... Nbd7 {[%clk 0:03:02]} 5. Bc4 {[%clk 0:02:55.3]}
5... Be7 {[%clk 0:03:02.4]} 6. O-O {[%clk 0:02:55.1]} 6... O-O {[%clk
0:03:02.7]} 7. Re1 {[%clk 0:02:55.4]} 7... c6 {[%clk 0:03:03.2]} 8. a4 {[%clk
0:02:55.3]} 8... a5 {[%clk 0:03:03.7]} 9. h3 {[%clk 0:02:54]} 9... Nb6 {[%clk
0:03:04.1]} 10. Bf1 {[%clk 0:02:43.1]} 10... exd4 {[%clk 0:03:03.9]} 11. Nxd4
{[%clk 0:02:44]} 11... d5 {[%clk 0:03:04.8]} 12. e5 {[%clk 0:02:42.1]} 12... Ne8
{[%clk 0:03:05.3]} 13. Nce2 {[%clk 0:02:37.7]} 13... g6 {[%clk 0:03:02.9]} 14.
Bh6 {[%clk 0:02:36.2]} 14... Ng7 {[%clk 0:03:03.3]} 15. Nf4 {[%clk 0:02:36.7]}
15... Re8 {[%clk 0:02:56.1]} 16. e6 {[%clk 0:02:05.3]} 16... f5 {[%clk 0:02:38]}
17. b3 {[%clk 0:01:51.1]} 17... Bf6 {[%clk 0:02:16.7]} 18. c3 {[%clk 0:01:45.3]}
18... c5 {[%clk 0:01:57.6]} 19. Nb5 {[%clk 0:01:42.7]} 19... Nxe6 {[%clk
0:01:54.2]} 20. Nxe6 {[%clk 0:01:31.6]} 20... Rxe6 {[%clk 0:01:53.9]} 21. Bf4
{[%clk 0:01:25.9]} 21... Rc6 {[%clk 0:01:37.7]} 22. Qd2 {[%clk 0:01:20.7]} 22...
Bd7 {[%clk 0:01:35.1]} 23. Nd6 {[%clk 0:01:10.9]} 23... Ra7 {[%clk 0:01:12.1]}
24. Bb5 {[%clk 0:00:55.1]} 24... Rxd6 {[%clk 0:01:09.6]} 25. Bxd6 {[%clk
0:00:55.5]} 25... Bxb5 {[%clk 0:01:10.1]} 26. Bxc5 {[%clk 0:00:55.9]} 26... Bc6
{[%clk 0:01:05]} 27. Qe3 {[%clk 0:00:51.7]} 27... Ra6 {[%clk 0:01:02.5]} 28.
Qe6+ {[%clk 0:00:28.5]} 28... Kg7 {[%clk 0:01:02.4]} 29. Be7 {[%clk 0:00:19.2]}
29... Qxe7 {[%clk 0:00:53.4]} 30. Qxe7+ {[%clk 0:00:19.6]} 30... Bxe7 {[%clk
0:00:53.5]} 31. Rxe7+ {[%clk 0:00:20.2]} 31... Kh6 {[%clk 0:00:44.1]} 32. Rae1
{[%clk 0:00:18.4]} 32... Ra8 {[%clk 0:00:39.5]} 33. f4 {[%clk 0:00:15.3]} 33...
Rd8 {[%clk 0:00:34.8]} 34. Rc7 {[%clk 0:00:13.4]} 34... Rd7 {[%clk 0:00:33.2]}
35. Rxd7 {[%clk 0:00:13.5]} 35... Nxd7 {[%clk 0:00:32.6]} 36. Kf2 {[%clk
0:00:14.4]} 36... Nc5 {[%clk 0:00:32.2]} 37. Ke3 {[%clk 0:00:13.2]} 37... Nxb3
{[%clk 0:00:29.8]} 38. Rb1 {[%clk 0:00:10.8]} 38... Nc5 {[%clk 0:00:29.3]} 39.
Kd4 {[%clk 0:00:10.6]} 39... Nd7 {[%clk 0:00:24.3]} 40. g4 {[%clk 0:00:08.6]}
40... fxg4 {[%clk 0:00:22.5]} 41. hxg4 {[%clk 0:00:09.5]} 41... Kg7 {[%clk
0:00:23.1]} 42. g5 {[%clk 0:00:09.5]} 42... Kf7 {[%clk 0:00:22.1]} 43. c4 {[%clk
0:00:06.6]} 43... dxc4 {[%clk 0:00:19]} 44. Kxc4 {[%clk 0:00:07.5]} 44... Ke6
{[%clk 0:00:18.4]} 45. Rb2 {[%clk 0:00:05.5]} 45... Kf5 {[%clk 0:00:17.4]} 46.
Rh2 {[%clk 0:00:05.4]} 46... Nb6+ {[%clk 0:00:17.1]} 47. Kc5 {[%clk 0:00:04.4]}
47... Nxa4+ {[%clk 0:00:11.6]} 48. Kd4 {[%clk 0:00:03.4]} 48... Kxf4 {[%clk
0:00:10.9]} 49. Rxh7 {[%clk 0:00:02.2]} 49... Kxg5 {[%clk 0:00:11]} 0-1

[Event "Early-Titled-Tuesday-Blitz-September-12-2023"]
[Site "Chess.com"]
[Date "2023.09.12"]
[Round "8"]
[White "inagreV"]
[Black "Irishchessman16"]
[Result "1-0"]
[WhiteElo "2286"]
[BlackElo "2471"]
[TimeControl "180+1"]
[EndTime "9:29:18 PDT"]
[Termination "inagreV won by resignation"]

1. e4 {[%clk 0:03:00.9]} 1... g6 {[%clk 0:02:57.3]} 2. d4 {[%clk 0:03:00]} 2...
Bg7 {[%clk 0:02:57.7]} 3. c4 {[%clk 0:03:00.4]} 3... Nc6 {[%clk 0:02:53.5]} 4.
Be3 {[%clk 0:02:55]} 4... d6 {[%clk 0:02:52.8]} 5. Nc3 {[%clk 0:02:54]} 5... e5
{[%clk 0:02:52.8]} 6. Nge2 {[%clk 0:02:53.4]} 6... exd4 {[%clk 0:02:49.8]} 7.
Nxd4 {[%clk 0:02:54.3]} 7... Nf6 {[%clk 0:02:48.9]} 8. Be2 {[%clk 0:02:53.9]}
8... O-O {[%clk 0:02:48]} 9. O-O {[%clk 0:02:54.1]} 9... Re8 {[%clk 0:02:48.3]}
10. f3 {[%clk 0:02:53.3]} 10... Ne5 {[%clk 0:02:47.5]} 11. Qd2 {[%clk
0:02:41.8]} 11... Bd7 {[%clk 0:02:44.5]} 12. Rfd1 {[%clk 0:02:41.3]} 12... a5
{[%clk 0:02:40.2]} 13. Rac1 {[%clk 0:02:14.4]} 13... a4 {[%clk 0:02:39.2]} 14.
h3 {[%clk 0:02:13.6]} 14... Nh5 {[%clk 0:02:36.6]} 15. f4 {[%clk 0:02:12.1]}
15... Nc6 {[%clk 0:02:34.6]} 16. Bxh5 {[%clk 0:01:54.7]} 16... gxh5 {[%clk
0:02:33.1]} 17. Nf3 {[%clk 0:01:49.4]} 17... Bxc3 {[%clk 0:02:31.6]} 18. Qxc3
{[%clk 0:01:48.2]} 18... Rxe4 {[%clk 0:02:32.2]} 19. Ng5 {[%clk 0:01:43.4]}
19... Bf5 {[%clk 0:02:15.1]} 20. Rd5 {[%clk 0:01:32.7]} 20... Ne7 {[%clk
0:02:02.3]} 21. Rxf5 {[%clk 0:00:38.1]} 21... Rxe3 {[%clk 0:02:02.1]} 22. Qxe3
{[%clk 0:00:33.7]} 22... Nxf5 {[%clk 0:02:02.1]} 23. Qd3 {[%clk 0:00:31]} 23...
Qd7 {[%clk 0:01:54.9]} 24. g4 {[%clk 0:00:30.4]} 24... hxg4 {[%clk 0:01:43.1]}
25. hxg4 {[%clk 0:00:31.3]} 25... h6 {[%clk 0:01:43.2]} 26. Ne4 {[%clk 0:00:30]}
26... Kf8 {[%clk 0:01:34]} 27. gxf5 {[%clk 0:00:29.7]} 27... Qxf5 {[%clk
0:01:33.9]} 28. Qf3 {[%clk 0:00:19.1]} 28... Ke7 {[%clk 0:01:30.3]} 29. Re1
{[%clk 0:00:17]} 29... Rg8+ {[%clk 0:01:29.1]} 30. Ng3+ {[%clk 0:00:17]} 30...
Kd7 {[%clk 0:01:25.4]} 31. Kf2 {[%clk 0:00:16.3]} 31... Qc2+ {[%clk 0:01:19.4]}
32. Re2 {[%clk 0:00:16.4]} 32... Qxc4 {[%clk 0:01:19.3]} 33. Ne4 {[%clk
0:00:15.3]} 33... Qd4+ {[%clk 0:01:17.8]} 34. Qe3 {[%clk 0:00:13]} 34... Qg7
{[%clk 0:01:14.1]} 35. Ke1 {[%clk 0:00:11.4]} 35... f5 {[%clk 0:01:07.1]} 36.
Nc3 {[%clk 0:00:10.4]} 36... Qg1+ {[%clk 0:01:00.7]} 37. Kd2 {[%clk 0:00:10.7]}
37... Qxe3+ {[%clk 0:00:58]} 38. Kxe3 {[%clk 0:00:10.9]} 38... Re8+ {[%clk
0:00:55.4]} 39. Kd3 {[%clk 0:00:11.4]} 39... Rxe2 {[%clk 0:00:54.1]} 40. Nxe2
{[%clk 0:00:11.6]} 40... b5 {[%clk 0:00:51.8]} 41. Nd4 {[%clk 0:00:11.7]} 41...
h5 {[%clk 0:00:46.2]} 42. Nxf5 {[%clk 0:00:09.6]} 42... c5 {[%clk 0:00:43.8]}
43. Ke4 {[%clk 0:00:09.5]} 43... Kc6 {[%clk 0:00:32.9]} 44. Ne3 {[%clk
0:00:09.3]} 44... h4 {[%clk 0:00:31.1]} 45. f5 {[%clk 0:00:09.3]} 45... h3
{[%clk 0:00:30.8]} 46. Ng4 {[%clk 0:00:09.2]} 46... d5+ {[%clk 0:00:26.7]} 47.
Ke5 {[%clk 0:00:09.4]} 47... Kd7 {[%clk 0:00:26.6]} 48. Kxd5 {[%clk 0:00:09.5]}
48... c4 {[%clk 0:00:23.5]} 49. Kc5 {[%clk 0:00:09.5]} 49... a3 {[%clk
0:00:23.9]} 50. f6 {[%clk 0:00:03.9]} 50... c3 {[%clk 0:00:22.8]} 51. f7 {[%clk
0:00:04]} 51... Ke7 {[%clk 0:00:22]} 52. bxc3 {[%clk 0:00:04.7]} 52... Kxf7
{[%clk 0:00:19.2]} 53. Kxb5 {[%clk 0:00:05]} 53... Ke6 {[%clk 0:00:18.8]} 54.
Nh2 {[%clk 0:00:05.9]} 54... Kd5 {[%clk 0:00:18.6]} 55. c4+ {[%clk 0:00:06.5]}
55... Kd6 {[%clk 0:00:18.6]} 56. c5+ {[%clk 0:00:07.4]} 56... Kc7 {[%clk
0:00:18.6]} 57. c6 {[%clk 0:00:07.9]} 57... Kc8 {[%clk 0:00:18.9]} 58. Kb6
{[%clk 0:00:08.3]} 58... Kb8 {[%clk 0:00:19.4]} 59. c7+ {[%clk 0:00:07.9]} 59...
Kc8 {[%clk 0:00:19.8]} 60. Nf3 {[%clk 0:00:08.2]} 1-0

[Event "Early-Titled-Tuesday-Blitz-September-12-2023"]
[Site "Chess.com"]
[Date "2023.09.12"]
[Round "8"]
[White "GaiozNigalidze"]
[Black "marik_spb"]
[Result "1-0"]
[WhiteElo "2723"]
[BlackElo "2456"]
[TimeControl "180+1"]
[EndTime "9:29:22 PDT"]
[Termination "GaiozNigalidze won on time"]

1. d4 {[%clk 0:03:00.9]} 1... Nf6 {[%clk 0:02:59.2]} 2. c4 {[%clk 0:03:00.1]}
2... e6 {[%clk 0:02:59.6]} 3. Nf3 {[%clk 0:02:59.9]} 3... d5 {[%clk 0:02:59.2]}
4. Nc3 {[%clk 0:02:58.4]} 4... c5 {[%clk 0:02:53.2]} 5. cxd5 {[%clk 0:02:52.8]}
5... Nxd5 {[%clk 0:02:50.4]} 6. e4 {[%clk 0:02:51.3]} 6... Nxc3 {[%clk
0:02:50.4]} 7. bxc3 {[%clk 0:02:52.2]} 7... cxd4 {[%clk 0:02:50.8]} 8. cxd4
{[%clk 0:02:53.1]} 8... Bb4+ {[%clk 0:02:50.3]} 9. Bd2 {[%clk 0:02:53.7]} 9...
Qa5 {[%clk 0:02:48.1]} 10. Bd3 {[%clk 0:02:37.7]} 10... Nc6 {[%clk 0:02:36.5]}
11. O-O {[%clk 0:02:17.5]} 11... Bxd2 {[%clk 0:02:32.5]} 12. Nxd2 {[%clk
0:02:18.4]} 12... Nxd4 {[%clk 0:01:58.9]} 13. Nc4 {[%clk 0:02:17.1]} 13... Qd8
{[%clk 0:01:51.3]} 14. e5 {[%clk 0:01:56.6]} 14... O-O {[%clk 0:01:49.1]} 15.
Nd6 {[%clk 0:01:17.1]} 15... Nf5 {[%clk 0:01:34.6]} 16. Bxf5 {[%clk 0:01:17]}
16... exf5 {[%clk 0:01:34.3]} 17. Qd5 {[%clk 0:01:16.5]} 17... Be6 {[%clk
0:01:30]} 18. Qxb7 {[%clk 0:01:15.2]} 18... Qb6 {[%clk 0:01:27.9]} 19. Qf3
{[%clk 0:01:09.5]} 19... Qd4 {[%clk 0:01:15]} 20. Rfe1 {[%clk 0:00:59.4]} 20...
Qg4 {[%clk 0:01:02.8]} 21. Qc3 {[%clk 0:00:43.2]} 21... a5 {[%clk 0:00:35.4]}
22. h3 {[%clk 0:00:38.6]} 22... Qg5 {[%clk 0:00:27.4]} 23. Qd4 {[%clk
0:00:34.6]} 23... Rab8 {[%clk 0:00:25.6]} 24. f4 {[%clk 0:00:19.5]} 24... Qh4
{[%clk 0:00:19.3]} 25. Qf2 {[%clk 0:00:19.7]} 25... Qxf2+ {[%clk 0:00:18.1]} 26.
Kxf2 {[%clk 0:00:20.6]} 26... Rb2+ {[%clk 0:00:18.1]} 27. Re2 {[%clk 0:00:21.1]}
27... Rfb8 {[%clk 0:00:18.4]} 28. a3 {[%clk 0:00:19.7]} 28... h6 {[%clk
0:00:17.2]} 29. Re1 {[%clk 0:00:18.3]} 29... R8b3 {[%clk 0:00:14.8]} 30. Rxb2
{[%clk 0:00:17.9]} 30... Rxb2+ {[%clk 0:00:14.8]} 31. Re2 {[%clk 0:00:17.9]}
31... Rb3 {[%clk 0:00:14.2]} 32. Re3 {[%clk 0:00:18.4]} 32... Rb2+ {[%clk
0:00:13.5]} 33. Kg1 {[%clk 0:00:15.8]} 33... Bd5 {[%clk 0:00:12.7]} 34. g3
{[%clk 0:00:16.3]} 34... g5 {[%clk 0:00:09.6]} 35. Nxf5 {[%clk 0:00:15.3]} 35...
Kh7 {[%clk 0:00:08.2]} 36. Nd4 {[%clk 0:00:11.6]} 36... Kg6 {[%clk 0:00:07.5]}
37. f5+ {[%clk 0:00:11.9]} 37... Kh5 {[%clk 0:00:06.7]} 38. e6 {[%clk
0:00:12.1]} 38... Rb1+ {[%clk 0:00:05]} 39. Kf2 {[%clk 0:00:11.7]} 39... Rb2+
{[%clk 0:00:05.3]} 40. Ke1 {[%clk 0:00:12.2]} 40... fxe6 {[%clk 0:00:04.3]} 41.
fxe6 {[%clk 0:00:12.5]} 41... Rb8 {[%clk 0:00:03.5]} 42. e7 {[%clk 0:00:11.9]}
42... Bf7 {[%clk 0:00:01.5]} 43. Nf5 {[%clk 0:00:10.1]} 43... Kg6 {[%clk
0:00:02.1]} 44. Nd6 {[%clk 0:00:09.6]} 44... Be8 {[%clk 0:00:02.7]} 45. Rf3
{[%clk 0:00:10]} 45... Rb6 {[%clk 0:00:01.8]} 46. Nxe8 {[%clk 0:00:09.9]} 46...
Re6+ {[%clk 0:00:02.7]} 47. Kd2 {[%clk 0:00:10]} 47... Rxe7 {[%clk 0:00:03.6]}
48. Nd6 {[%clk 0:00:10]} 48... Rd7 {[%clk 0:00:03.4]} 49. Rd3 {[%clk 0:00:10.4]}
49... h5 {[%clk 0:00:02.6]} 50. Nc4 {[%clk 0:00:10.6]} 1-0

[Event "Early-Titled-Tuesday-Blitz-September-12-2023"]
[Site "Chess.com"]
[Date "2023.09.12"]
[Round "8"]
[White "ShiroglanTalibov"]
[Black "CSB7"]
[Result "1-0"]
[WhiteElo "2858"]
[BlackElo "2713"]
[TimeControl "180+1"]
[EndTime "9:29:25 PDT"]
[Termination "ShiroglanTalibov won by resignation"]

1. e4 {[%clk 0:02:55.7]} 1... e6 {[%clk 0:02:59.6]} 2. Qe2 {[%clk 0:02:54.5]}
2... e5 {[%clk 0:02:55.1]} 3. Nf3 {[%clk 0:02:51]} 3... Nc6 {[%clk 0:02:55.5]}
4. g3 {[%clk 0:02:50.9]} 4... g6 {[%clk 0:02:43.9]} 5. Bg2 {[%clk 0:02:49.6]}
5... Bg7 {[%clk 0:02:44.5]} 6. O-O {[%clk 0:02:48.3]} 6... Nge7 {[%clk
0:02:45.1]} 7. c3 {[%clk 0:02:48.6]} 7... O-O {[%clk 0:02:45.5]} 8. Na3 {[%clk
0:02:47.5]} 8... h6 {[%clk 0:02:35.8]} 9. Nc2 {[%clk 0:02:46.8]} 9... d5 {[%clk
0:02:34.1]} 10. d3 {[%clk 0:02:42.1]} 10... Be6 {[%clk 0:02:34.5]} 11. Re1
{[%clk 0:02:39.5]} 11... Qd7 {[%clk 0:02:31.8]} 12. Be3 {[%clk 0:02:35.9]} 12...
Rad8 {[%clk 0:02:27]} 13. Bc5 {[%clk 0:02:32.5]} 13... dxe4 {[%clk 0:02:10]} 14.
dxe4 {[%clk 0:02:31.5]} 14... Qd3 {[%clk 0:02:10.4]} 15. Qxd3 {[%clk 0:02:03.3]}
15... Rxd3 {[%clk 0:02:11.3]} 16. Nb4 {[%clk 0:02:04]} 16... Rd7 {[%clk
0:01:42.6]} 17. Nxc6 {[%clk 0:02:00]} 17... bxc6 {[%clk 0:01:43.5]} 18. a4
{[%clk 0:01:51.3]} 18... Rb8 {[%clk 0:01:25.1]} 19. b4 {[%clk 0:01:50.8]} 19...
Nc8 {[%clk 0:01:25.7]} 20. a5 {[%clk 0:01:50.3]} 20... a6 {[%clk 0:01:19.6]} 21.
Bf1 {[%clk 0:01:48.3]} 21... Ra8 {[%clk 0:01:19.5]} 22. Rad1 {[%clk 0:01:47.3]}
22... Nd6 {[%clk 0:01:18.5]} 23. Kg2 {[%clk 0:01:35.6]} 23... Kf8 {[%clk
0:01:10.9]} 24. h3 {[%clk 0:01:25.7]} 24... Ke8 {[%clk 0:01:09.7]} 25. Nd2
{[%clk 0:01:19.6]} 25... Nb5 {[%clk 0:01:07.1]} 26. c4 {[%clk 0:01:02.9]} 26...
Nc3 {[%clk 0:00:57.2]} 27. Rc1 {[%clk 0:01:03]} 27... Rxd2 {[%clk 0:00:36.6]}
28. Rxc3 {[%clk 0:01:02.2]} 28... Bf8 {[%clk 0:00:37.2]} 29. Bxf8 {[%clk
0:00:55.5]} 29... Kxf8 {[%clk 0:00:38.1]} 30. Rb1 {[%clk 0:00:51.4]} 30... Rb8
{[%clk 0:00:17.4]} 31. c5 {[%clk 0:00:50.1]} 31... Ba2 {[%clk 0:00:18]} 32. Ra1
{[%clk 0:00:41.6]} 32... Rxb4 {[%clk 0:00:15.7]} 33. Bxa6 {[%clk 0:00:41.4]}
33... Rxe4 {[%clk 0:00:15.9]} 34. Rd3 {[%clk 0:00:28.3]} 34... Rxd3 {[%clk
0:00:11.4]} 35. Bxd3 {[%clk 0:00:29.2]} 35... Ra4 {[%clk 0:00:11.7]} 36. Kh2
{[%clk 0:00:20.6]} 36... Rxa5 {[%clk 0:00:10.6]} 37. Bb1 {[%clk 0:00:16.9]}
37... Bxb1 {[%clk 0:00:05.8]} 38. Rxa5 {[%clk 0:00:16.6]} 38... Ke7 {[%clk
0:00:06.5]} 39. Ra7 {[%clk 0:00:15.9]} 39... Kd7 {[%clk 0:00:06.6]} 40. Kg2
{[%clk 0:00:13.9]} 40... Be4+ {[%clk 0:00:06.9]} 41. Kf1 {[%clk 0:00:14.2]}
41... Bf3 {[%clk 0:00:06]} 42. Ke1 {[%clk 0:00:13.8]} 42... Bg2 {[%clk
0:00:05.2]} 43. h4 {[%clk 0:00:13.6]} 43... h5 {[%clk 0:00:04.9]} 44. Kd2 {[%clk
0:00:14.1]} 44... Be4 {[%clk 0:00:05.5]} 45. Ke3 {[%clk 0:00:14.4]} 45... Bd5
{[%clk 0:00:06.1]} 46. f4 {[%clk 0:00:14.9]} 46... exf4+ {[%clk 0:00:06.1]} 47.
Kxf4 {[%clk 0:00:14.9]} 47... Be6 {[%clk 0:00:04.7]} 48. Ke5 {[%clk 0:00:14.4]}
48... Bc4 {[%clk 0:00:03.1]} 49. Kf6 {[%clk 0:00:14.9]} 49... Bb3 {[%clk
0:00:02.6]} 50. Ra8 {[%clk 0:00:14.9]} 50... Bd5 {[%clk 0:00:02.1]} 51. Rf8
{[%clk 0:00:14.6]} 51... Bc4 {[%clk 0:00:02.2]} 52. Rxf7+ {[%clk 0:00:14.2]}
52... Bxf7 {[%clk 0:00:02.3]} 53. Kxf7 {[%clk 0:00:15.1]} 1-0

[Event "Early-Titled-Tuesday-Blitz-September-12-2023"]
[Site "Chess.com"]
[Date "2023.09.12"]
[Round "8"]
[White "jcmesafischer"]
[Black "Pumpkin_in_moonlight"]
[Result "1-0"]
[WhiteElo "2380"]
[BlackElo "2238"]
[TimeControl "180+1"]
[EndTime "9:29:31 PDT"]
[Termination "jcmesafischer won on time"]

1. Nf3 {[%clk 0:03:00.9]} 1... Nf6 {[%clk 0:02:57]} 2. c4 {[%clk 0:02:46.2]}
2... g6 {[%clk 0:02:53]} 3. g3 {[%clk 0:02:44.7]} 3... Bg7 {[%clk 0:02:52.2]} 4.
Bg2 {[%clk 0:02:45.1]} 4... O-O {[%clk 0:02:49.8]} 5. Nc3 {[%clk 0:02:44.6]}
5... d5 {[%clk 0:02:46.7]} 6. cxd5 {[%clk 0:02:42.9]} 6... Nxd5 {[%clk
0:02:46.3]} 7. O-O {[%clk 0:02:42.8]} 7... Nb6 {[%clk 0:02:45.1]} 8. d4 {[%clk
0:02:39.1]} 8... Nc6 {[%clk 0:02:36]} 9. d5 {[%clk 0:02:31.4]} 9... Na5 {[%clk
0:02:15.7]} 10. e4 {[%clk 0:02:26.3]} 10... c6 {[%clk 0:02:13.2]} 11. Bg5 {[%clk
0:02:10.9]} 11... cxd5 {[%clk 0:02:06.2]} 12. Nxd5 {[%clk 0:02:05.4]} 12... Nxd5
{[%clk 0:02:00.4]} 13. exd5 {[%clk 0:02:05.2]} 13... Bxb2 {[%clk 0:01:42.9]} 14.
d6 {[%clk 0:01:58.3]} 14... Qxd6 {[%clk 0:01:34.8]} 15. Qxd6 {[%clk 0:01:47.2]}
15... exd6 {[%clk 0:01:34.3]} 16. Rab1 {[%clk 0:01:46]} 16... Bg7 {[%clk
0:01:29.2]} 17. Be7 {[%clk 0:01:33.1]} 17... Re8 {[%clk 0:01:27.8]} 18. Bxd6
{[%clk 0:01:32.8]} 18... Be6 {[%clk 0:01:20.7]} 19. Rb5 {[%clk 0:01:28.5]} 19...
Nc4 {[%clk 0:01:07.4]} 20. Bf4 {[%clk 0:01:23]} 20... Re7 {[%clk 0:00:31.7]} 21.
Ng5 {[%clk 0:01:18.5]} 21... Bf5 {[%clk 0:00:12.8]} 22. Bd5 {[%clk 0:01:11.1]}
22... Nb6 {[%clk 0:00:07.8]} 23. Bg2 {[%clk 0:00:47.9]} 23... Bd3 {[%clk
0:00:07.9]} 24. a4 {[%clk 0:00:31.5]} 24... Bxb5 {[%clk 0:00:06.8]} 25. axb5
{[%clk 0:00:32.4]} 25... h6 {[%clk 0:00:05.6]} 26. Ne4 {[%clk 0:00:30.1]} 26...
Rc8 {[%clk 0:00:05.7]} 27. Nd6 {[%clk 0:00:30]} 27... Rc2 {[%clk 0:00:05.3]} 28.
Nxb7 {[%clk 0:00:24.5]} 28... g5 {[%clk 0:00:05.6]} 29. Bb8 {[%clk 0:00:21.8]}
29... Rc8 {[%clk 0:00:04.3]} 30. Bxa7 {[%clk 0:00:21.7]} 30... Rcc7 {[%clk
0:00:04.5]} 31. Bxb6 {[%clk 0:00:21.7]} 31... Rxb7 {[%clk 0:00:04.6]} 32. Bxb7
{[%clk 0:00:19.7]} 32... Rxb7 {[%clk 0:00:05.5]} 33. Be3 {[%clk 0:00:18.4]}
33... Rxb5 {[%clk 0:00:05.8]} 34. g4 {[%clk 0:00:17.9]} 34... Kh7 {[%clk
0:00:06]} 35. Rd1 {[%clk 0:00:17.5]} 35... Kg6 {[%clk 0:00:06.3]} 36. Rd6+
{[%clk 0:00:17.6]} 36... f6 {[%clk 0:00:06.3]} 37. Kg2 {[%clk 0:00:16.7]} 37...
Rb4 {[%clk 0:00:06.7]} 38. Kg3 {[%clk 0:00:16.4]} 38... h5 {[%clk 0:00:06.1]}
39. h3 {[%clk 0:00:15.9]} 39... h4+ {[%clk 0:00:05.4]} 40. Kf3 {[%clk
0:00:15.7]} 40... Rb3 {[%clk 0:00:05.7]} 41. Ke4 {[%clk 0:00:15.3]} 41... Rb4+
{[%clk 0:00:06]} 42. Bd4 {[%clk 0:00:14.6]} 42... Kf7 {[%clk 0:00:04.5]} 43.
Rd7+ {[%clk 0:00:14.4]} 43... Kg6 {[%clk 0:00:04.5]} 44. Rd6 {[%clk 0:00:14.5]}
44... Kf7 {[%clk 0:00:04.6]} 45. Kf5 {[%clk 0:00:14.9]} 45... Rb5+ {[%clk
0:00:04.4]} 46. Ke4 {[%clk 0:00:13.7]} 46... Kg6 {[%clk 0:00:04.9]} 47. f4
{[%clk 0:00:10.9]} 47... gxf4 {[%clk 0:00:03.7]} 48. Kxf4 {[%clk 0:00:10.6]}
48... Rb4 {[%clk 0:00:03.9]} 49. Ke4 {[%clk 0:00:09.2]} 49... Kf7 {[%clk
0:00:03.4]} 50. Rd7+ {[%clk 0:00:09.3]} 50... Kg6 {[%clk 0:00:03.7]} 51. Kf3
{[%clk 0:00:05.7]} 51... Rb3+ {[%clk 0:00:02.3]} 52. Be3 {[%clk 0:00:03.1]}
52... Bh6 {[%clk 0:00:01.7]} 53. Re7 {[%clk 0:00:03.8]} 1-0

[Event "Early-Titled-Tuesday-Blitz-September-12-2023"]
[Site "Chess.com"]
[Date "2023.09.12"]
[Round "8"]
[White "wannabe2700"]
[Black "Herzog2012"]
[Result "0-1"]
[WhiteElo "2611"]
[BlackElo "2516"]
[TimeControl "180+1"]
[EndTime "9:29:36 PDT"]
[Termination "Herzog2012 won by checkmate"]

1. b3 {[%clk 0:03:00.9]} 1... e5 {[%clk 0:02:59.3]} 2. Bb2 {[%clk 0:03:01.8]}
2... Nc6 {[%clk 0:02:59.6]} 3. e3 {[%clk 0:03:02.3]} 3... Nf6 {[%clk 0:02:58.4]}
4. Nf3 {[%clk 0:03:02.5]} 4... Bd6 {[%clk 0:02:58.3]} 5. d4 {[%clk 0:02:51.4]}
5... exd4 {[%clk 0:02:52.9]} 6. exd4 {[%clk 0:02:45]} 6... O-O {[%clk
0:02:49.5]} 7. Be2 {[%clk 0:02:45.1]} 7... Ne7 {[%clk 0:02:33.1]} 8. O-O {[%clk
0:02:36.9]} 8... c6 {[%clk 0:02:31.1]} 9. c4 {[%clk 0:02:37.1]} 9... Bb8 {[%clk
0:02:26.5]} 10. d5 {[%clk 0:02:37.6]} 10... Ng6 {[%clk 0:02:02.5]} 11. d6 {[%clk
0:02:30.9]} 11... b6 {[%clk 0:01:41]} 12. Nc3 {[%clk 0:02:24.9]} 12... Bb7
{[%clk 0:01:34.7]} 13. b4 {[%clk 0:02:21.5]} 13... a5 {[%clk 0:01:22.4]} 14. a3
{[%clk 0:02:20.8]} 14... axb4 {[%clk 0:01:21.9]} 15. axb4 {[%clk 0:02:20.7]}
15... Rxa1 {[%clk 0:01:22.3]} 16. Bxa1 {[%clk 0:02:19.3]} 16... c5 {[%clk
0:01:18.4]} 17. bxc5 {[%clk 0:01:54.5]} 17... bxc5 {[%clk 0:01:18.3]} 18. Qd2
{[%clk 0:01:30.9]} 18... Re8 {[%clk 0:01:07.3]} 19. Rd1 {[%clk 0:01:30.7]} 19...
Re6 {[%clk 0:01:04.7]} 20. Nb5 {[%clk 0:01:29.5]} 20... Ne4 {[%clk 0:01:01.8]}
21. Qb2 {[%clk 0:01:29.5]} 21... f6 {[%clk 0:00:59.6]} 22. Nc7 {[%clk
0:01:27.3]} 22... Bxc7 {[%clk 0:00:51.8]} 23. Qxb7 {[%clk 0:01:21.6]} 23... Nxd6
{[%clk 0:00:45.3]} 24. Qa7 {[%clk 0:01:20.9]} 24... Rxe2 {[%clk 0:00:42.4]} 25.
Qxc5 {[%clk 0:01:20.2]} 25... Ne4 {[%clk 0:00:24]} 26. Qd5+ {[%clk 0:01:18.3]}
26... Kh8 {[%clk 0:00:23.6]} 27. Nd4 {[%clk 0:01:14.7]} 27... Nf4 {[%clk
0:00:18.3]} 28. Qb7 {[%clk 0:01:11.4]} 28... Nc5 {[%clk 0:00:06.8]} 29. Qb5
{[%clk 0:01:02.5]} 29... Qe7 {[%clk 0:00:04.8]} 30. Nxe2 {[%clk 0:01:00.8]}
30... Qxe2 {[%clk 0:00:05.5]} 31. Rb1 {[%clk 0:00:55.7]} 31... h5 {[%clk
0:00:02.5]} 32. Qxc5 {[%clk 0:00:53.9]} 32... Qe4 {[%clk 0:00:03.1]} 33. Qxh5+
{[%clk 0:00:26.3]} 33... Nxh5 {[%clk 0:00:02.7]} 34. Rf1 {[%clk 0:00:26]} 34...
Qxc4 {[%clk 0:00:02.9]} 35. g3 {[%clk 0:00:25.3]} 35... Qe4 {[%clk 0:00:03.1]}
36. Bb2 {[%clk 0:00:24.6]} 36... Qc6 {[%clk 0:00:03.4]} 37. Rc1 {[%clk
0:00:23.3]} 37... Qxc1+ {[%clk 0:00:02.5]} 38. Bxc1 {[%clk 0:00:23.5]} 38... f5
{[%clk 0:00:03]} 39. Kf1 {[%clk 0:00:23.5]} 39... Kg8 {[%clk 0:00:03.3]} 40. Ke2
{[%clk 0:00:24.1]} 40... Kf7 {[%clk 0:00:04]} 41. Kd3 {[%clk 0:00:24.8]} 41...
Ke6 {[%clk 0:00:04.5]} 42. Bb2 {[%clk 0:00:24]} 42... g6 {[%clk 0:00:03.6]} 43.
Kc4 {[%clk 0:00:22.4]} 43... d5+ {[%clk 0:00:03.8]} 44. Kc5 {[%clk 0:00:22.2]}
44... Be5 {[%clk 0:00:03.4]} 45. Bc1 {[%clk 0:00:21.9]} 45... Nf6 {[%clk
0:00:03.8]} 46. f3 {[%clk 0:00:20.9]} 46... Nd7+ {[%clk 0:00:04]} 47. Kc6 {[%clk
0:00:20.9]} 47... d4 {[%clk 0:00:03.9]} 48. Kb5 {[%clk 0:00:20.6]} 48... Kd5
{[%clk 0:00:03.7]} 49. Kb4 {[%clk 0:00:20.8]} 49... Nc5 {[%clk 0:00:03.5]} 50.
Kb5 {[%clk 0:00:20.6]} 50... d3 {[%clk 0:00:03.6]} 51. Bd2 {[%clk 0:00:21.3]}
51... Nb3 {[%clk 0:00:03.9]} 52. Be3 {[%clk 0:00:21]} 52... d2 {[%clk
0:00:04.4]} 53. Bxd2 {[%clk 0:00:21.4]} 53... Nxd2 {[%clk 0:00:05.3]} 54. Kb4
{[%clk 0:00:22]} 54... Nxf3 {[%clk 0:00:05]} 55. h3 {[%clk 0:00:22.3]} 55...
Bxg3 {[%clk 0:00:05.1]} 56. Kc3 {[%clk 0:00:22.4]} 56... Ke4 {[%clk 0:00:05.5]}
57. Kc2 {[%clk 0:00:22.2]} 57... f4 {[%clk 0:00:05.6]} 58. Kd1 {[%clk
0:00:23.1]} 58... Nd4 {[%clk 0:00:05.5]} 59. Kd2 {[%clk 0:00:23.2]} 59... f3
{[%clk 0:00:05.5]} 60. h4 {[%clk 0:00:23.2]} 60... f2 {[%clk 0:00:05.2]} 61. h5
{[%clk 0:00:24.1]} 61... f1=Q {[%clk 0:00:05]} 62. Kc3 {[%clk 0:00:23.8]} 62...
Qd3+ {[%clk 0:00:05.2]} 63. Kb4 {[%clk 0:00:24.4]} 63... Bd6+ {[%clk 0:00:05.4]}
64. Ka5 {[%clk 0:00:25]} 64... Qb5# {[%clk 0:00:05.7]} 0-1